Cogmind - Beta 11.1 *** ADVENTURER MODE // 2022.06.07 @ 21:32:51 Player: Frostleban Result: Destroyed by G-34 Mercenary with Small Laser Performance ------------- Evolutions (1) 500 Regions Visited (2) 400 Robots Destroyed (24) 120 Value Destroyed (501) 501 Prototype IDs (1) 20 Alien Tech Used (0) 0 Bonus (239) 239 TOTAL SCORE: 1780 Bonus ------- Pacifist 200 High Alert Combat Kills 39 Cogmind --------- Core Integrity 0/400 Matter 241/300 Energy 45/100 System Corruption 6% Temperature Cool (6) Movement Walking (190) Ox1 Location -9/Materials Parts ------- > --- POWER (2) -------- (None) > --- PROPULSION (2) --- Aluminum Leg > --- UTILITY (3) ------ Terrain Scanner Reflective Plating > --- WEAPON (2) ------- Ion Cannon Ion Cannon > --- INVENTORY (5) ---- Seismic Detector Targeting Computer Targeting Computer Peak State ------------ > --- POWER ------------ Ion Engine Light Ion Engine > --- PROPULSION ------- Compact Wheel Compact Wheel > --- UTILITY ---------- Small Storage Unit Seismic Detector Targeting Computer > --- WEAPON ----------- Beam Cannon Advanced Beam Cannon > --- INVENTORY -------- Targeting Computer Targeting Computer Medium Laser Medium Laser Assault Rifle Datajack [Rating: 11] Favorites ----------- Power Light Ion Engine Engine Light Ion Engine Propulsion Compact Wheel Leg Aluminum Leg Wheel Compact Wheel Utility Small Storage Unit Device Seismic Detector Storage Small Storage Unit Processor Targeting Computer Protection Reflective Plating Weapon Beam Cannon Energy Gun Medium Laser Energy Cannon Beam Cannon Ballistic Gun Assault Rifle Build | -11 -10 -9 ------- Run | Scr Mat Mat Slots Evolved 2 | . . 2 Power 1 | . . 1 Propulsion . | . . . Utility 1 | . . 1 Weapon . | . . . Parts Attached 29 | 7 4 18 Power 3 | 2 . 1 Engine 3 | 2 . 1 Core . | . . . Reactor . | . . . Propulsion 6 | 2 . 4 Treads . | . . . Leg 4 | . . 4 Wheel 2 | 2 . . Hover . | . . . Flight . | . . . Utility 7 | 1 1 5 Device 4 | . 1 3 Storage 1 | 1 . . Processor 1 | . . 1 Hackware . | . . . Protection 1 | . . 1 Artifact . | . . . Weapon 13 | 2 3 8 Energy Gun 6 | 1 2 3 Energy Cannon 5 | . 1 4 Ballistic Gun 2 | 1 . 1 Ballistic Cannon . | . . . Launcher . | . . . Special Weapon . | . . . Impact Weapon . | . . . Slashing Weapon . | . . . Piercing Weapon . | . . . Special Melee Weapon . | . . . Unidentified Prototypes 1 | . . 1 Parts Lost 12 | . . 12 Power 2 | . . 2 Propulsion 3 | . . 3 Utility 4 | . . 4 Weapon 3 | . . 3 Highest Loss Streak 7 | . . 7 To Critical Strikes . | . . . Average Slot Usage (%) 78 | . 98 72 Engine 12 | . 14 12 Leg 4 | . . 5 Wheel 15 | . 28 12 Device 9 | . 13 9 Storage 10 | . 14 10 Processor 4 | . . 5 Energy Gun 7 | . 17 4 Energy Cannon 10 | . 6 12 Ballistic Gun 1 | . 3 1 Naked Turns . | . . . Heaviest Build 21 | 11 14 21 Greatest Support 32 | 32 32 32 Greatest Overweight (x) 3 | . . 3 Average Overweight (x) . | . . . Largest Inventory Capacity 8 | 8 8 8 Average Capacity 7 | 7 8 7 Most Carried 8 | 1 8 8 Average Carried 5 | . 3 6 Final Capacity 8 | 8 8 5 Final Carried 8 | 1 8 3 Class Distribution -------------------- 100% | Mutant Dominant Class ---------------- Mutant | -10/Materials Mutant | -9/Materials Resources | -11 -10 -9 ----------- Run | Scr Mat Mat Matter Collected 479 | 182 . 297 Remotely . | . . . Salvage Created 592 | . . 592 Parts 41 | . . 41 Haulers Intercepted . | . . . Recyclers Shooed . | . . . Parts Field Recycled . | . . . Retrieved Matter . | . . . Parts Self-Destructed . | . . . Prevented . | . . . Kills | -11 -10 -9 ------- Run | Scr Mat Mat Combat Hostiles Destroyed 20 | . . 20 Guns 8 | . . 8 Cannons 8 | . . 8 AOE 4 | . . 4 Classes Destroyed 8 | . . 8 Worker 1 | . . 1 Builder 1 | . . 1 Recycler 1 | . . 1 Watcher 1 | . . 1 Swarmer 11 | . . 11 Grunt 6 | . . 6 Brawler 1 | . . 1 Sentry 2 | . . 2 Best Kill Streak 11 | . . 11 Combat Bots Only 8 | . . 8 Max Kills in Single Turn 7 | . . 7 Gunslinging . | . . . Exploded 4 | . . 4 Melee . | . . . Uniques/NPCs Destroyed . | . . . Combat | -11 -10 -9 -------- Run | Scr Mat Mat Damage Taken 1253 | . . 1253 Core 404 | . . 404 Absorbed by Shields . | . . . Core Remaining (%) 100 | 100 100 . Volleys Fired 36 | . 1 35 Largest 2 | . 2 2 Hottest 128 | . 110 128 Shots Fired 62 | . 2 60 Gun 19 | . 1 18 Cannon 43 | . 1 42 Launcher . | . . . Special . | . . . Kinetic 2 | . . 2 Thermal 59 | . 2 57 Explosive . | . . . Electromagnetic 1 | . . 1 Robot Hit Streak 29 | . 1 29 Robot Miss Streak 1 | . 1 1 Penetration Max . | . . . Secondary Targets . | . . . Shots Hit Robots 49 | . 1 48 Core Hits 28 | . . 28 Critical Kills . | . . . Critical Parts Destroyed . | . . . Critical Strikes 2 | . . 2 Burn 2 | . . 2 Melee Attacks . | . . . Impact . | . . . Slashing . | . . . Piercing . | . . . Sneak Attacks . | . . . Combat Hostiles . | . . . Follow-up Attacks . | . . . Damage Inflicted 1441 | . 17 1424 Guns 164 | . . 164 Cannons 644 | . 17 627 Explosions 623 | . . 623 Melee . | . . . Ramming 10 | . . 10 Kinetic 17 | . . 17 Thermal 1406 | . 17 1389 Explosive . | . . . Electromagnetic 8 | . . 8 Impact . | . . . Slashing . | . . . Piercing . | . . . Highest Corruption 6 | . . 6 Average Corruption 5 | . . 5 Corruption Purged . | . . . Corruption Blocked . | . . . Effects 8 | . . 8 Message Errors 1 | . . 1 Heat Flow Errors 1 | . . 1 Energy Discharges 1 | . . 1 Parts Rejected 1 | . . 1 Data Loss (minor) 2 | . . 2 Data Loss (major) 1 | . . 1 Misfires 1 | . . 1 Overload Shots . | . . . Overflow Damage 261 | . . 261 Projectiles . | . . . Explosions 261 | . . 261 Melee . | . . . Knockbacks . | . . . Impact . | . . . Kinetic . | . . . Secondary . | . . . Self-Inflicted Damage 120 | . . 120 Shots 2 | . . 2 Rammed . | . . . Targets Rammed 10 | . . 10 Kicked 10 | . . 10 Crushed . | . . . Highest Temperature 859 | . 48 859 Average Temperature 259 | . 26 266 Received Heat Transfer 519 | . . 519 Effects 20 | . . 20 Shutdowns 3 | . . 3 Energy Bleed 3 | . . 3 Interference 1 | . . 1 Matter Decay 3 | . . 3 Short Circuit 3 | . . 3 Damage (minor) 3 | . . 3 Damage (major) 3 | . . 3 Damage (core) 1 | . . 1 Siege Activations . | . . . Robots Corrupted . | . . . Combat Hostiles . | . . . Parts Fried . | . . . Impact Corruptions . | . . . Robots Melted . | . . . Combat Hostiles . | . . . Parts Melted 7 | . . 7 Heat Transferred 2263 | . 37 2226 Parts Sabotaged . | . . . Parts Stolen . | . . . Parts Stripped . | . . . Power Chain Reactions . | . . . Missiles Intercepted . | . . . Alert | -11 -10 -9 ------- Run | Scr Mat Mat Peak Influence 558 | . . 558 Initial . | . . . Average 190 | . . 270 Maximum Alert Level 2 | . . 2 Low Security (%) 61 | 100 100 45 Level 1 14 | . . 19 Level 2 24 | . . 34 Level 3 . | . . . Level 4 . | . . . Level 5 . | . . . High Security . | . . . Max Security . | . . . Squads Dispatched . | . . . Investigation . | . . . Extermination . | . . . Reinforcement . | . . . Assault . | . . . Garrison . | . . . Intercept . | . . . Searches Triggered . | . . . Construction Impeded . | . . . Haulers Reinforced . | . . . Active Scanning Responses . | . . . Cargo Convoy Interrupts . | . . . Stealth | -11 -10 -9 --------- Run | Scr Mat Mat Distress Signals 2 | . . 2 Communications Jammed . | . . . Distress Signals . | . . . Times Spotted 28 | . 1 27 Peak Tracking Total 11 | . 1 11 Tactical Retreats 3 | . . 3 Traps | -11 -10 -9 ------- Run | Scr Mat Mat Traps Triggered 1 | . 1 . Indirectly . | . . . Trap Hack Attempts . | . . . Triggered . | . . . Disarmed . | . . . Reprogrammed . | . . . Reused . | . . . Traps Extracted . | . . . Installed . | . . . Triggered . | . . . Machines | -11 -10 -9 ---------- Run | Scr Mat Mat Machines Disabled 2 | . . 2 Max in Single Turn 2 | . . 2 Machines Sabotaged . | . . . Garrisons Compromised . | . . . Overloaded Fab Kills . | . . . Hacking | -11 -10 -9 --------- Run | Scr Mat Mat Machines Accessed 2 | . 1 1 Terminals 2 | . 1 1 Fabricators . | . . . Repair Stations . | . . . Recycling Units . | . . . Scanalyzers . | . . . Garrison Access . | . . . Total Hacks 2 | . 1 1 Successful 1 | . 1 . Failed 1 | . . 1 Catastrophic 1 | . . 1 Database Lockouts . | . . . Manual . | . . . Terminals 2 | . 1 1 Fabricators . | . . . Repair Stations . | . . . Recycling Units . | . . . Scanalyzers . | . . . Garrison Access . | . . . Terminal Hacks 1 | . 1 . Zone Layout 1 | . 1 . Fabricator Hacks . | . . . Repair Station Hacks . | . . . Recycling Unit Hacks . | . . . Scanalyzer . | . . . Garrison Access Hacks . | . . . Unauthorized Hacks . | . . . Terminals . | . . . Fabricators . | . . . Repair Stations . | . . . Recycling Units . | . . . Scanalyzers . | . . . Garrison Access . | . . . Data Cores Recovered . | . . . Used . | . . . Hacking Detections . | . . . Full Trace Events . | . . . Feedback Events . | . . . Feedback Blocked . | . . . Robot Schematics Acquired . | . . . Robots Built . | . . . Authchips . | . . . Time . | . . . Total Robot Build Rating . | . . . Part Schematics Acquired . | . . . Parts Built . | . . . Authchips . | . . . Time . | . . . Total Part Build Rating . | . . . Parts Repaired . | . . . Time . | . . . Parts Recycled . | . . . Recycled Matter . | . . . Retrieved Matter . | . . . Retrieved Components . | . . . Parts Scanalyzed . | . . . Part Schematics Acquired . | . . . Parts Damaged . | . . . Bothacking | -11 -10 -9 ------------ Run | Scr Mat Mat Used RIF Installer . | . . . Robots Hacked . | . . . Non-combat . | . . . Combat . | . . . Robot Hacks Applied . | . . . Relay Couplers Released . | . . . Fabnet Peak Effective % . | . . . Robots Rewired . | . . . Allies Hacked . | . . . Hacks Repelled . | . . . Allies | -11 -10 -9 -------- Run | Scr Mat Mat Total Allies . | . . . Largest Group . | . . . Highest-Rated Group . | . . . Highest-Rated Ally . | . . . Total Orders . | . . . Ally Attacks . | . . . Total Damage . | . . . Kills . | . . . Allies Corrupted . | . . . Allies Melted . | . . . Intel | -11 -10 -9 ------- Run | Scr Mat Mat Robot Analysis Total . | . . . Derelict Logs Recovered . | . . . Drone Launches . | . . . Drone Recoveries . | . . . Exploration | -11 -10 -9 ------------- Run | Scr Mat Mat Turns Passed 769 | 60 168 541 Spaces Moved 563 | 51 154 358 Core 38 | 4 . 34 Treads . | . . . Legs 102 | . . 102 Wheels 423 | 47 154 222 Hover . | . . . Flight . | . . . Fastest Speed 50 | 50 100 50 Average Speed 106 | 96 100 110 Slowest Speed 200 | 100 100 200 Overloaded Moves . | . . . Propulsion Burnouts . | . . . Robots Hopped . | . . . Cave-ins Triggered . | . . . Exploration Rate (%) 19 | 4 24 31 Regions Visited 2 Branch Regions . Pre-discovered Areas . | . . . Known Exits Taken . | . . . Unknown Exits Taken 2 | 1 1 . Scrap Searched . | . . . Spaces Dug . | . . . Terrain Destroyed 53 | . . 53 Melee . | . . . Projectile . | . . . AOE 53 | . . 53 Terrain Rammed . | . . . Walls Destroyed . | . . . Machines Disabled . | . . . Actions | -11 -10 -9 --------- Run | Scr Mat Mat Total 667 | 59 165 443 Wait 11 | . . 11 Move 561 | 50 153 358 Hop . | . . . Pick Up 7 | 1 4 2 Fast Attach 20 | 6 4 10 Attach 8 | 1 . 7 Detach 7 | 1 3 3 Swap 1 | . . 1 Drop 6 | . . 6 Fire 36 | . 1 35 Melee . | . . . Ram . | . . . Kick 10 | . . 10 Crush . | . . . Escape Stasis . | . . . Rewire . | . . . Trap . | . . . Miscellaneous . | . . . Route ------- -11/Scrapyard -10/Materials -9/Materials (discovered 1 exit: [*Mat]) History --------- Turn | Location | Event 26 | -11/Scrapyard | Discovered new exit (range 15) 61 | -11/Scrapyard | Entered Materials 137 | -10/Materials | Discovered new exit (range 20) 229 | -10/Materials | Entered another Materials area 229 | -9/Materials | Evolved 2 slots: Power x1, Utility x1 308 | -9/Materials | Build established: Mutant 551 | -9/Materials | Core integrity fell below 50% 572 | -9/Materials | Destroyed 8 combat bots 582 | -9/Materials | Lost 7 parts (2p1n2u2w) 653 | -9/Materials | Core integrity fell below 20% 701 | -9/Materials | Lost 4 parts (2n1u1w) 740 | -9/Materials | Discovered new exit (range 10) 770 | -9/Materials | Destroyed by G-34 Mercenary with Small Laser Last Messages --------------- 00657_ S-10 Pest destroyed. 00661_ Acquired 15 matter. 00665_ Acquired 20 matter. 00666_ Imp. Aluminum Leg destroyed. 00668_ S-10 Pest suffers critical hit (Burn). 00668_ S-10 Pest destroyed. 00669_ Acquired 20 matter. 00670_ Aluminum Leg destroyed. 00675_ Acquired Lgt. Assault Rifle. 00677_ System corrupted: Component data lost. 00703_ G-34 Mercenary destroyed. 00722_ System corrupted: Lgt. Assault Rifle rejected. 00722_ Sml. Storage Unit destroyed. 00739_ System corrupted: Substantial component data lost. 00740_ EXIT=FOUND 00758_ System corrupted: Energy discharge (-21). 00763_ Acquired Reflective Plating. 00766_ Acquired Ion Cannon. 00769_ Dropped Med. Laser. 00770_ Acquired Ion Cannon. Map ----- +----------------------------------------------------+ | ????# ## """##""""=""""#???????????????????? | | ????# ## """## ##?? ????????????????? | | ????# ## """## # #???????????????????? | | ????# ## """############???????????????????? | | ????# ## #??#???????????????????????????? | | ????+ ! ## #????????#?????????????????????? | | ????#[% ## #??????????????????????????????? | | ????# ###########??????????????????????????????? | | ????# /[#????????????????????????????????????????? | | ????# #????????????????????????????????????????? | | ????# #????????????????????????????????????????? | | ????# #????????????????????????????????????????? | | ??#?# #???#????????????????????????????????????? | | ????# ##### #######?+??????????????????????????? | | ????# / # ??????????????????????????? | | ????+ #### # #?????????????????????????? | | ????# #???? ! ?# #?????????????????????????? | | ????# #???? ?# #?????????????????????????? | | ????# #?????"" "??# #????#????????????????????? | | ????# #?????"" Y??# #?????????????????????????? | | ????+ #??????" ???# #?????????????????????????? | | ????# #?????? ???# #####?????????????????????? | | ????# ########+##### !!#?????"???????????????? | | ????# g !#?????????????????????? | | ???# []#?????????????????????? | | ????# @]#?????????????????????? | | ????########+## < ###### !!##??? ????????????????? | | ??????????????# #????# !!#?????????????????????? | | ??????????????#####????#####?????????????????????? | | ?????????"???????????????????????? ??????????????? | | ?????????????????????????????????????????????????? | | ??????????????????????????#??????????????????????? | | ??????????? ?????????????????????????????????????? | | ???????????#?????????????????????????????????????? | | | | | | | | | | | | | | | | | | | | | | | | | | | | | | | | | +----------------------------------------------------+ Best States ------------- Heat Dissipation 38 Energy Generation 15 Energy Capacity 275 Matter Stores 293 Matter Capacity 300 Sight Range 16 Terrain Scan Range 14 Terrain Scan Density 10 Armor Coverage 150 Resistance: KI 20 Resistance: TH 30 Resistance: EX 20 Resistance: EM 20 Resistance: I 20 Resistance: S 20 Resistance: P 20 Evasion (%) 55 Targeting Accuracy 5 Offensive Hacking 10 Item Schematics ----------------- None Robot Schematics ------------------ None Fabricated ------------ Nothing Alien Tech Used ----------------- None Achievements -------------- None Challenges ------------ None Game ------ Seed MasterDecoderMallet Manual? 0 Play Time 00:32:13 Cumulative 13.9 hours Start 2022.06.07 @ 20:55:39 End 2022.06.07 @ 21:32:51 Sessions 1 Manual Loads 0 Difficulty Adventurer Special Mode None Game No. 19 Rogue 18 Adventurer 1 Explorer 0 Win Type - Total 0 Types 0/0/0/0/0/0/0/0/0 Lore% 4 Gallery% 20 Achievement% 19 Wizard Run 0 Options --------- ASCII 0 Keyboard 1 Movement Arrows Keybinds 0 Fullscreen 1 Font 18/SmallcapsGlow Map View 76x50 Tactical HUD 1 Map Filters NONE Filters NONE Steam 1 RUN: 2e85a1cc-5b70-4a30-8fee-1ace6e0d2660